bitfinex/quotes_BTCUSD_20240728
["timestamp","ask_amount","ask_price","bid_price","bid_amount"]
[1722180795654,0.45979909,67853.0,67852.0,0.288003]
[1722180795655,0.15617465,67853.0,67852.0,0.288003]
[1722180795884,0.06956361,67853.0,67852.0,0.1701]
[1722180796066,0.06956361,67853.0,67852.0,0.17434366]
[1722180796067,0.00607036,67853.0,67852.0,0.17434366]
[1722180796791,0.00607036,67853.0,67852.0,0.24947345]
[1722180796928,0.00507036,67853.0,67852.0,0.24947345]
[1722180797105,0.00507036,67853.0,67852.0,0.29224666]
[1722180797312,0.001,67853.0,67852.0,0.52805366]
[1722180797719,0.00507036,67853.0,67852.0,0.52805366]
[1722180797955,0.001,67853.0,67852.0,0.83899045]
[1722180798149,0.001,67853.0,67852.0,0.76386066]
[1722180798354,0.00607036,67853.0,67852.0,0.52805366]
[1722180799922,0.09127036,67853.0,67852.0,0.17434366]
[1722180800140,0.50909071,67853.0,67852.0,0.17434366]
[1722180800310,0.31709559,67853.0,67852.0,0.17434366]
[1722180800635,0.37351905,67853.0,67852.0,0.17434366]
[1722180801371,0.30780722,67853.0,67852.0,0.17434366]
[1722180801764,0.3516127,67853.0,67852.0,0.17434366]
[1722180802260,0.30780722,67853.0,67852.0,0.17434366]
[1722180802464,0.24369087,67853.0,67852.0,0.17434366]
[1722180802710,0.30780976,67853.0,67852.0,0.17434366]
[1722180803114,0.35161748,67853.0,67852.0,0.17434366]
[1722180803313,0.30780976,67853.0,67852.0,0.17434366]
[1722180803515,0.54361276,67853.0,67852.0,0.17434366]
[1722180803729,0.30780976,67853.0,67852.0,0.03224366]
[1722180804273,0.30780976,67853.0,67852.0,0.028]
[1722180804495,0.77941576,67853.0,67852.0,0.028]
[1722180804654,0.84251576,67853.0,67852.0,0.03223601]
[1722180804896,0.93013615,67853.0,67852.0,0.028]
[1722180805289,0.87568321,67853.0,67852.0,0.028]
[1722180805627,0.71529687,67853.0,67852.0,0.028]
[1722180805830,0.87548906,67853.0,67852.0,0.028]
[1722180807528,0.96310945,67853.0,67852.0,0.028]
[1722180807876,0.87548906,67853.0,67852.0,0.028]
[1722180808267,0.96309402,67853.0,67852.0,0.028]
[1722180809097,0.9415998,67853.0,67852.0,0.028]
[1722180809786,0.87590455,67853.0,67852.0,0.028]
[1722180809985,0.94167467,67853.0,67852.0,0.028]
[1722180810134,0.87597935,67853.0,67852.0,0.028]
[1722180810507,0.87526975,67853.0,67852.0,0.028]
[1722180810937,0.94095228,67853.0,67852.0,0.028]
[1722180811139,0.87526975,67853.0,67852.0,0.028]
[1722180811359,0.94094555,67853.0,67852.0,0.028]
[1722180811562,0.87426975,67853.0,67852.0,0.028]
[1722180811898,0.98499877,67853.0,67852.0,0.028]
[1722180812133,0.98599877,67853.0,67852.0,0.028]
[1722180812356,0.83654744,67853.0,67852.0,0.028]
[1722180812565,0.8982951,67853.0,67852.0,0.028]
[1722180812733,0.8982951,67853.0,67852.0,0.103]
[1722180812936,0.94207946,67853.0,67852.0,0.1636]
[1722180813133,0.70627646,67853.0,67852.0,0.1636]
[1722180813635,0.22358454,67853.0,67852.0,0.1636]
[1722180813814,0.12713735,67853.0,67852.0,0.1636]
[1722180813984,0.34145364,67853.0,67852.0,0.1636]
[1722180814185,0.34145364,67853.0,67852.0,0.16784851]
[1722180814536,0.42665364,67853.0,67852.0,0.16784851]
[1722180814766,0.42662359,67853.0,67852.0,0.16784851]
[1722180815037,0.30872259,67853.0,67852.0,0.16784851]
[1722180815237,0.35252675,67853.0,67852.0,0.16784851]
[1722180815653,0.35274565,67853.0,67852.0,0.16784851]
[1722180816175,0.30893633,67853.0,67852.0,0.16784851]
[1722180816735,0.22373633,67853.0,67852.0,0.16784851]
[1722180816929,0.30893633,67853.0,67852.0,0.16784851]
[1722180817142,0.37465031,67853.0,67852.0,0.16784851]
[1722180817675,0.37465031,67853.0,67852.0,0.16940271]
[1722180817851,0.35151505,67853.0,67852.0,0.16784851]
[1722180818255,0.28580107,67853.0,67852.0,0.16784851]
[1722180819110,0.28633161,67853.0,67852.0,0.16784851]
[1722180819238,0.37402667,67853.0,67852.0,0.16784851]
[1722180820233,0.39595044,67853.0,67852.0,0.16784851]
[1722180820388,0.39595044,67853.0,67852.0,0.28575151]
[1722180820996,0.31075044,67853.0,67852.0,0.16784851]
[1722180821139,0.20113161,67853.0,67852.0,0.16784851]
[1722180821341,0.20113161,67853.0,67852.0,0.16940271]
[1722180822203,0.03988027,67853.0,67852.0,0.16940271]
[1722180822387,0.20253532,67853.0,67852.0,0.03224851]
[1722180822564,0.32043632,67853.0,67852.0,0.03224851]
[1722180822956,0.20253532,67853.0,67852.0,0.03224851]
[1722180824498,0.03988027,67853.0,67852.0,0.03224851]
[1722180824695,0.20170867,67853.0,67852.0,0.03224851]
[1722180824905,0.22484333,67853.0,67852.0,0.03224851]
[1722180825530,0.22476922,67853.0,67852.0,0.03224851]
[1722180825877,0.20163456,67853.0,67852.0,0.03224851]
[1722180826441,0.20490403,67853.0,67852.0,0.03224851]
[1722180827351,0.20490403,67853.0,67852.0,0.03317251]
[1722180828310,0.33672642,67853.0,67852.0,0.03317251]
[1722180828936,0.33678847,67853.0,67852.0,0.03317251]
[1722180829273,0.47782413,67853.0,67852.0,0.03317251]
[1722180830582,0.45468947,67853.0,67852.0,0.03317251]
[1722180832100,0.22598261,67853.0,67852.0,0.03317251]
[1722180832315,0.45510162,67853.0,67852.0,0.03317251]
[1722180832804,0.45607948,67853.0,67852.0,0.03317251]
[1722180833707,0.45507948,67853.0,67852.0,0.03317251]
[1722180833930,0.45607948,67853.0,67852.0,0.03317251]
[1722180834156,0.32417141,67853.0,67852.0,0.03317251]
[1722180834621,0.32301078,67853.0,67852.0,0.03317251]
[1722180835123,0.34614555,67853.0,67852.0,0.03317251]
[1722180835560,0.34614361,67853.0,67852.0,0.03317251]
[1722180836242,0.72754661,67853.0,67852.0,0.03317251]
[1722180836434,0.96334961,67853.0,67852.0,0.028924]
[1722180836850,1.11174619,67853.0,67852.0,0.028924]
[1722180837274,0.96334961,67853.0,67852.0,0.028924]
[1722180837478,1.11174619,67853.0,67852.0,0.028924]
[1722180838048,1.08861142,67853.0,67852.0,0.028924]
[1722180838650,1.08814212,67853.0,67852.0,0.028924]
[1722180839384,0.93974554,67853.0,67852.0,0.028924]
[1722180839792,1.08813544,67853.0,67852.0,0.028924]
[1722180840391,1.08813999,67853.0,67852.0,0.028924]
[1722180840599,0.93974554,67853.0,67852.0,0.028924]
[1722180841197,0.77922187,67853.0,67852.0,0.028924]
[1722180841397,1.1751023,67853.0,67852.0,0.028924]
[1722180841845,1.01502487,67853.0,67852.0,0.028924]
[1722180842062,1.17509958,67853.0,67852.0,0.028924]
[1722180842789,1.19823504,67853.0,67852.0,0.028924]
[1722180842992,1.17509958,67853.0,67852.0,0.028924]
[1722180843597,1.30203099,67853.0,67852.0,0.028924]
[1722180843793,1.17490933,67853.0,67852.0,0.028924]
[1722180844223,1.01502487,67853.0,67852.0,0.028924]
[1722180844433,1.17490778,67853.0,67852.0,0.028924]
[1722180845799,1.28324415,67853.0,67852.0,0.028924]
[1722180846251,1.26010778,67853.0,67852.0,0.028924]
[1722180846653,0.87870478,67853.0,67852.0,0.028924]
[1722180847316,1.01586926,67853.0,67852.0,0.028924]
[1722180847539,1.11313642,67853.0,67852.0,0.028924]
[1722180848553,1.11213642,67853.0,67852.0,0.028924]
[1722180849572,1.13527242,67853.0,67852.0,0.028924]
[1722180849771,1.11213642,67853.0,67852.0,0.028924]
[1722180850787,1.11313642,67853.0,67852.0,0.028924]
[1722180851437,1.11216351,67853.0,67852.0,0.028924]
[1722180851640,1.11216351,67853.0,67852.0,0.091724]
[1722180851641,0.39428518,67853.0,67852.0,0.091724]
[1722180851835,0.79217291,67853.0,67852.0,0.171624]
[1722180852011,0.87637291,67853.0,67852.0,0.171624]
[1722180852434,0.87737291,67853.0,67852.0,0.171624]
[1722180852840,0.90050849,67853.0,67852.0,0.171624]
[1722180853244,0.87742735,67853.0,67852.0,0.171624]
[1722180853419,0.64162435,67853.0,67852.0,0.171624]
[1722180854014,0.64155446,67853.0,67852.0,0.171624]
[1722180854909,0.63977075,67853.0,67852.0,0.171624]
[1722180855600,0.40396775,67853.0,67852.0,0.171624]
[1722180856359,0.4271032,67853.0,67852.0,0.171624]
[1722180857429,0.42714874,67853.0,67852.0,0.171624]
[1722180857577,0.66195174,67853.0,67852.0,0.171624]
[1722180857779,0.66295174,67853.0,67852.0,0.108824]
[1722180857943,0.89875474,67853.0,67852.0,0.028924]
[1722180858348,0.87561929,67853.0,67852.0,0.028924]
[1722180859167,0.63981629,67853.0,67852.0,0.028924]
[1722180860401,0.63943828,67853.0,67852.0,0.028924]
[1722180860805,0.63935483,67853.0,67852.0,0.028924]
[1722180861159,0.64020034,67853.0,67852.0,0.028924]
[1722180863380,0.87600334,67853.0,67852.0,0.028924]
[1722180863805,1.02429175,67853.0,67852.0,0.028924]
[1722180863933,0.87593741,67853.0,67852.0,0.028924]
[1722180864899,0.89907351,67853.0,67852.0,0.028924]
[1722180865406,0.87593741,67853.0,67852.0,0.028924]
[1722180867152,0.71534447,67853.0,67852.0,0.028924]
[1722180867348,0.87599386,67853.0,67852.0,0.028924]
[1722180868650,0.89912988,67853.0,67852.0,0.028924]
[1722180870062,0.71534447,67853.0,67852.0,0.028924]
[1722180870251,0.87643438,67853.0,67852.0,0.028924]
[1722180870764,0.87645182,67853.0,67852.0,0.028924]
[1722180871097,0.78869721,67853.0,67852.0,0.028924]
[1722180871300,0.64960099,67853.0,67852.0,0.028924]
[1722180871516,0.5554489,67853.0,67852.0,0.028924]
[1722180871625,0.7889848,67853.0,67852.0,0.0304782]
[1722180871991,0.5554489,67853.0,67852.0,0.028924]
[1722180872120,0.6406489,67853.0,67852.0,0.028924]
[1722180872964,0.47954147,67853.0,67852.0,0.028924]
[1722180873198,0.6636596,67853.0,67852.0,0.0304782]
[1722180873475,0.6636596,67853.0,67852.0,0.028924]
[1722180873706,0.6636596,67853.0,67852.0,0.0304782]
[1722180873857,0.66355923,67853.0,67852.0,0.028924]
[1722180874088,0.66355923,67853.0,67852.0,0.0304782]
[1722180874264,0.66355923,67853.0,67852.0,0.028924]
[1722180874881,0.42775623,67853.0,67852.0,0.028924]
[1722180875491,0.40462065,67853.0,67852.0,0.028924]
[1722180875686,0.64042365,67853.0,67852.0,0.028924]
[1722180877078,0.40462065,67853.0,67852.0,0.028924]
[1722180877416,0.40468358,67853.0,67852.0,0.028924]
[1722180878441,0.40468358,67853.0,67852.0,0.0304782]
[1722180878795,0.42781907,67853.0,67852.0,0.028924]
[1722180878999,0.40468358,67853.0,67852.0,0.028924]
[1722180879220,0.64048658,67853.0,67852.0,0.028924]
[1722180880561,0.77949112,67853.0,67852.0,0.028924]
[1722180880761,0.8759802,67853.0,67852.0,0.028924]
[1722180880965,0.71534447,67853.0,67852.0,0.028924]
[1722180881175,0.95163065,67853.0,67852.0,0.028924]
[1722180882319,0.9747666,67853.0,67852.0,0.028924]
[1722180883136,0.97471588,67853.0,67852.0,0.028924]
[1722180883674,0.97483561,67853.0,67852.0,0.028924]
[1722180883845,0.95169966,67853.0,67852.0,0.028924]
[1722180886691,1.78490566,67853.0,67852.0,0.028924]
[1722180886981,1.82118421,67853.0,67852.0,0.028924]
[1722180887128,1.82118421,67853.0,67831.0,0.000924]
[1722180887129,0.44255067,67832.0,67831.0,0.000924]
[1722180887290,0.87579631,67832.0,67831.0,0.000924]
[1722180888402,0.63992031,67832.0,67831.0,0.000924]
[1722180888604,0.77190553,67832.0,67831.0,0.000924]
[1722180889448,0.54318657,67832.0,67831.0,0.000924]
[1722180889794,0.77906257,67832.0,67831.0,0.000924]
[1722180890193,0.78035193,67832.0,67831.0,0.000924]
[1722180890602,0.78035481,67832.0,67831.0,0.000924]
[1722180891040,0.80349644,67832.0,67831.0,0.000924]
[1722180891243,0.80349644,67832.0,67831.0,0.008924]
[1722180891454,0.78135481,67832.0,67831.0,0.008924]
[1722180891777,0.71668747,67832.0,67831.0,0.008924]
[1722180891905,0.78130224,67832.0,67831.0,0.008924]
[1722180893396,0.78133889,67832.0,67831.0,0.008924]
[1722180894786,0.80448045,67832.0,67831.0,0.008924]
[1722180894969,0.78133889,67832.0,67831.0,0.008924]
[1722180895577,0.78033889,67832.0,67831.0,0.008924]
[1722180896402,0.78133889,67832.0,67831.0,0.008924]
[1722180896747,0.78130955,67832.0,67831.0,0.008924]
[1722180897833,0.80445086,67832.0,67831.0,0.008924]
[1722180899624,0.78130955,67832.0,67831.0,0.008924]
[1722180900305,0.71226186,67832.0,67831.0,0.008924]
[1722180900613,0.77680429,67832.0,67831.0,0.008924]
[1722180901331,0.45572829,67832.0,67831.0,0.008924]
[1722180901540,0.53992829,67832.0,67831.0,0.008924]
[1722180901939,0.21985229,67832.0,67831.0,0.008924]
[1722180902162,0.21985229,67832.0,67831.0,0.01290619]
[1722180902163,0.56467392,67832.0,67831.0,0.01290619]
[1722180902435,0.45482839,67832.0,67831.0,0.01290619]
[1722180902637,0.45482839,67832.0,67831.0,0.008924]
[1722180902878,0.45482839,67832.0,67831.0,0.01290619]
[1722180903076,0.47796907,67832.0,67831.0,0.01290619]
[1722180903714,0.47796907,67832.0,67831.0,0.008924]
[1722180903914,0.47896907,67832.0,67831.0,0.01290619]
[1722180904320,0.47796907,67832.0,67831.0,0.01290619]
[1722180905124,0.32829307,67832.0,67831.0,0.01290619]
[1722180905445,0.32827866,67832.0,67831.0,0.01290619]
[1722180905640,0.56415466,67832.0,67831.0,0.01290619]
[1722180906237,0.56315466,67832.0,67831.0,0.01290619]
[1722180906603,0.90988117,67832.0,67831.0,0.01290619]
[1722180906782,0.90988117,67832.0,67831.0,0.008924]
[1722180907016,0.80003066,67832.0,67831.0,0.008924]
[1722180907218,0.77688998,67832.0,67831.0,0.008924]
[1722180907614,0.77688998,67832.0,67831.0,0.01291115]
[1722180907818,0.74505479,67832.0,67831.0,0.008924]
[1722180908020,0.84199501,67832.0,67831.0,0.008924]
[1722180908225,0.87390692,67832.0,67831.0,0.008924]
[1722180908646,0.87384758,67832.0,67831.0,0.008924]
[1722180910465,0.89598877,67832.0,67831.0,0.008924]
[1722180911065,0.87284758,67832.0,67831.0,0.008924]
[1722180911422,0.87380759,67832.0,67831.0,0.008924]
[1722180911959,0.71233858,67832.0,67831.0,0.008924]
[1722180912167,0.8738229,67832.0,67831.0,0.008924]
[1722180914475,0.89698191,67832.0,67831.0,0.008924]
[1722180914880,0.89699865,67832.0,67831.0,0.008924]
[1722180915278,0.89665354,67832.0,67831.0,0.008924]
[1722180915502,0.89565354,67832.0,67831.0,0.008924]
[1722180915901,0.87251239,67832.0,67831.0,0.008924]
[1722180916440,0.87351239,67832.0,67831.0,0.008924]
[1722180917524,0.87251239,67832.0,67831.0,0.008924]
[1722180917727,0.87351239,67832.0,67831.0,0.008924]
[1722180918511,0.71233858,67832.0,67831.0,0.008924]
[1722180918751,0.87358069,67832.0,67831.0,0.008924]
[1722180920762,0.89672184,67832.0,67831.0,0.008924]
[1722180920893,0.87358069,67832.0,67831.0,0.008924]
[1722180921932,0.87265512,67832.0,67831.0,0.008924]
[1722180922357,0.87272109,67832.0,67831.0,0.008924]
[1722180923539,0.89586194,67832.0,67831.0,0.008924]
[1722180923948,0.89686194,67832.0,67831.0,0.008924]
[1722180924139,0.86395003,67832.0,67831.0,0.008924]
[1722180924345,0.89524999,67832.0,67831.0,0.008924]
[1722180924953,0.73386748,67832.0,67831.0,0.008924]
[1722180925164,0.89498124,67832.0,67831.0,0.008924]
[1722180925358,0.89598124,67832.0,67831.0,0.008924]
[1722180926080,1.02791736,67832.0,67831.0,0.008924]
[1722180926725,0.89598124,67832.0,67831.0,0.008924]
[1722180927489,0.87284039,67832.0,67831.0,0.008924]
[1722180928337,0.71172663,67832.0,67831.0,0.008924]
[1722180928647,0.87278859,67832.0,67831.0,0.008924]
[1722180928986,0.87232889,67832.0,67831.0,0.008924]
[1722180930382,0.87218254,67832.0,67831.0,0.008924]
[1722180930950,0.89532335,67832.0,67831.0,0.008924]
[1722180931161,1.10805854,67832.0,67831.0,0.008924]
[1722180931481,1.36699439,67832.0,67831.0,0.008924]
[1722180931546,1.20607878,67832.0,67831.0,0.008924]
[1722180931750,1.3670374,67832.0,67831.0,0.008924]
[1722180931948,1.3660374,67832.0,67831.0,0.008924]
[1722180932152,1.36578211,67832.0,67831.0,0.008924]
[1722180932355,1.36778211,67832.0,67831.0,0.008924]
[1722180933012,1.36678211,67832.0,67831.0,0.008924]
[1722180933677,1.36578211,67832.0,67831.0,0.000924]
[1722180933814,1.36678211,67832.0,67831.0,0.007924]
[1722180934233,1.3889256,67832.0,67831.0,0.000924]
[1722180934661,1.3909256,67832.0,67831.0,0.007924]
[1722180934865,1.22922227,67832.0,67831.0,0.007924]
[1722180935085,1.39104934,67832.0,67831.0,0.007924]
[1722180935642,1.36790585,67832.0,67831.0,0.007924]
[1722180938761,1.36690585,67832.0,67831.0,0.007924]
[1722180938919,1.36790585,67832.0,67831.0,0.007924]
[1722180940718,1.10897,67832.0,67831.0,0.007924]
[1722180940929,0.786894,67832.0,67831.0,0.007924]
[1722180941133,0.786894,67832.0,67831.0,0.087324]
[1722180941134,0.873094,67832.0,67831.0,0.087324]
[1722180941335,0.87319382,67832.0,67831.0,0.153024]
[1722180941543,0.87219382,67832.0,67831.0,0.153024]
[1722180941745,0.71026693,67832.0,67831.0,0.153024]
[1722180941943,0.83158847,67832.0,67831.0,0.153024]
[1722180942140,0.89535034,67832.0,67831.0,0.153024]
[1722180942586,0.89635034,67832.0,67831.0,0.153024]
[1722180943104,0.89535034,67832.0,67831.0,0.153024]
[1722180943285,0.89635034,67832.0,67831.0,0.153024]
[1722180943521,0.89535034,67832.0,67831.0,0.153024]
[1722180943732,0.73341003,67832.0,67831.0,0.153024]
[1722180943906,0.89499058,67832.0,67831.0,0.153024]
[1722180944318,0.63697148,67832.0,67831.0,0.153024]
[1722180944533,0.63581047,67832.0,67831.0,0.153024]
[1722180944861,0.63581047,67832.0,67831.0,0.16063453]
[1722180945884,0.87168647,67832.0,67831.0,0.153024]
[1722180946149,0.63581047,67832.0,67831.0,0.153024]
[1722180946458,0.63581047,67832.0,67831.0,0.16063453]
[1722180947821,0.63590275,67832.0,67831.0,0.16063453]
[1722180948355,0.87177875,67832.0,67831.0,0.16063453]
[1722180948570,0.63590275,67832.0,67831.0,0.153024]
[1722180949601,0.87177875,67832.0,67831.0,0.153024]
[1722180950306,0.53893271,67832.0,67831.0,0.153024]
[1722180950442,0.63568246,67832.0,67831.0,0.153024]
[1722180951045,0.47439093,67832.0,67831.0,0.153024]
[1722180951387,0.63569926,67832.0,67831.0,0.153024]
[1722180951686,0.80783648,67832.0,67831.0,0.153024]
[1722180952639,1.04293343,67832.0,67831.0,0.153024]
[1722180953312,1.01979033,67832.0,67831.0,0.153024]
[1722180953701,1.01985966,67832.0,67831.0,0.153024]
[1722180954033,1.02085966,67832.0,67831.0,0.153024]
[1722180954276,0.63504736,67832.0,67831.0,0.087324]
[1722180954505,0.87192336,67832.0,67831.0,0.007924]
[1722180955604,0.87092336,67832.0,67831.0,0.007924]
[1722180955750,0.87192336,67832.0,67831.0,0.007924]
[1722180956383,0.87092336,67832.0,67831.0,0.007924]
[1722180956596,0.89406646,67832.0,67831.0,0.007924]
[1722180957112,0.89506646,67832.0,67831.0,0.007924]
[1722180957528,0.89389786,67832.0,67831.0,0.007924]
[1722180958076,0.89489786,67832.0,67831.0,0.007924]
[1722180958998,0.87175476,67832.0,67831.0,0.007924]
[1722180959842,1.10763076,67832.0,67831.0,0.007924]
[1722180960050,0.87175476,67832.0,67831.0,0.007924]
[1722180960601,0.71048788,67832.0,67831.0,0.007924]
[1722180960996,0.87183134,67832.0,67831.0,0.007924]
[1722180961194,0.71048788,67832.0,67831.0,0.007924]
[1722180961428,0.87183133,67832.0,67831.0,0.007924]
[1722180962470,0.8949747,67832.0,67831.0,0.007924]
[1722180963017,0.71048788,67832.0,67831.0,0.007924]
[1722180963217,0.87193056,67832.0,67831.0,0.007924]
[1722180963418,1.20928962,67832.0,67831.0,0.007924]
[1722180963632,1.16920656,67832.0,67831.0,0.007924]
[1722180963829,0.93333056,67832.0,67831.0,0.007924]
[1722180964092,1.01483056,67832.0,67831.0,0.007924]
[1722180964268,1.30070656,67832.0,67831.0,0.007924]
[1722180964719,1.25070656,67832.0,67831.0,0.007924]
[1722180966263,1.17536202,67832.0,67831.0,0.007924]
[1722180966464,1.27066419,67832.0,67831.0,0.007924]
[1722180966837,1.24752024,67832.0,67831.0,0.007924]
[1722180967212,1.21745903,67832.0,67831.0,0.007924]
[1722180967400,1.24046597,67832.0,67831.0,0.007924]
[1722180968252,1.92660154,67832.0,67831.0,0.007924]
[1722180968430,2.24354074,67832.0,67831.0,0.007924]
[1722180968652,2.02660154,67832.0,67831.0,0.007924]
[1722180969220,2.24349407,67832.0,67831.0,0.007924]
[1722180969452,2.24350706,67832.0,67831.0,0.007924]
[1722180969677,2.24410935,67832.0,67831.0,0.007924]
[1722180970133,2.15890935,67832.0,67831.0,0.007924]
[1722180970371,1.62694291,67832.0,67831.0,0.007924]
[1722180970597,1.84384978,67832.0,67831.0,0.007924]
[1722180971278,1.62694291,67832.0,67831.0,0.007924]
[1722180971583,1.65008786,67832.0,67831.0,0.007924]
[1722180971713,1.62694291,67832.0,67831.0,0.007924]
[1722180971911,2.09384978,67832.0,67831.0,0.007924]
[1722180972067,1.87694291,67832.0,67831.0,0.007924]
[1722180972270,2.09384978,67832.0,67831.0,0.007924]
[1722180972706,2.24402266,67832.0,67831.0,0.007924]
[1722180972920,2.09376309,67832.0,67831.0,0.007924]
[1722180973150,2.09376452,67832.0,67831.0,0.007924]
[1722180973352,1.71808561,67832.0,67831.0,0.007924]
[1722180973700,2.09374752,67832.0,67831.0,0.007924]
[1722180973899,1.87588524,67832.0,67831.0,0.000924]
[1722180974025,2.02514481,67832.0,67831.0,0.000924]
[1722180974226,2.02514481,67832.0,67831.0,0.001924]
[1722180974435,2.0482919,67832.0,67831.0,0.001924]
[1722180975071,2.04863447,67832.0,67831.0,0.001924]
[1722180975411,1.99230508,67832.0,67831.0,0.001924]
[1722180975631,2.19130508,67832.0,67831.0,0.001924]
[1722180975763,1.99230508,67832.0,67831.0,0.001924]
[1722180976146,2.24232493,67832.0,67831.0,0.001924]
[1722180976378,2.09206536,67832.0,67831.0,0.001924]
[1722180977783,2.04106536,67832.0,67831.0,0.001924]
[1722180977978,1.84206536,67832.0,67831.0,0.001924]
[1722180978206,1.38937712,67832.0,67831.0,0.001924]
[1722180978555,1.82425312,67832.0,67831.0,0.001924]
[1722180978774,1.6483989,67832.0,67831.0,0.001924]
[1722180978997,1.6483989,67832.0,67831.0,0.001824]
[1722180979207,1.84741723,67832.0,67831.0,0.001824]
[1722180979814,1.65432923,67832.0,67831.0,0.001824]
[1722180980815,1.85332923,67832.0,67831.0,0.001824]
[1722180982424,1.65432923,67832.0,67831.0,0.001824]
[1722180982638,1.65419085,67832.0,67831.0,0.001824]
[1722180983023,1.69414339,67832.0,67831.0,0.001824]
[1722180983246,1.85319927,67832.0,67831.0,0.001824]
[1722180985050,1.8533218,67832.0,67831.0,0.001824]
[1722180985254,1.6543218,67832.0,67831.0,0.001824]
[1722180985658,1.2832458,67832.0,67831.0,0.001824]
[1722180985831,1.16108976,67832.0,67831.0,0.001824]
[1722180986036,1.2243652,67832.0,67831.0,0.001824]
[1722180986490,1.37291101,67832.0,67831.0,0.001824]
[1722180986707,1.2243652,67832.0,67831.0,0.001824]
[1722180986990,1.37393349,67832.0,67831.0,0.001824]
[1722180987347,1.2243652,67832.0,67831.0,0.001824]
[1722180987551,1.2253652,67832.0,67831.0,0.001824]
[1722180987797,1.2243652,67832.0,67831.0,0.001824]
[1722180987984,1.37294098,67832.0,67831.0,0.001824]
[1722180988191,1.37294906,67832.0,67831.0,0.001824]
[1722180988391,1.2243652,67832.0,67831.0,0.001824]
[1722180988996,1.22449286,67832.0,67831.0,0.001824]
[1722180989329,1.22349286,67832.0,67831.0,0.001824]
[1722180989907,1.22449286,67832.0,67831.0,0.001824]
[1722180990119,1.37475243,67832.0,67831.0,0.001824]
[1722180990321,1.66599286,67832.0,67831.0,0.001824]
[1722180990727,1.6497982,67832.0,67831.0,0.001824]
[1722180991470,1.8997982,67832.0,67831.0,0.001824]
[1722180992447,1.83781561,67832.0,67831.0,0.001824]
[1722180992649,1.89935318,67832.0,67831.0,0.001824]
[1722180993345,1.64935318,67832.0,67831.0,0.001824]
[1722180994003,1.6494536,67832.0,67831.0,0.001824]
[1722180994382,1.8484536,67832.0,67831.0,0.001824]
[1722180994756,1.82530782,67832.0,67831.0,0.001824]
[1722180994953,1.82535794,67832.0,67831.0,0.001824]
[1722180996562,1.87635794,67832.0,67831.0,0.001824]
[1722180996842,1.82535794,67832.0,67831.0,0.001824]
[1722180997150,1.802351,67832.0,67831.0,0.001824]
[1722180997332,1.853351,67832.0,67831.0,0.001824]
[1722180997542,1.603351,67832.0,67831.0,0.001824]
[1722180997966,1.82549627,67832.0,67831.0,0.001824]
[1722180998324,1.802351,67832.0,67831.0,0.001824]
[1722180998532,1.603351,67832.0,67831.0,0.001824]
[1722180999118,1.60359496,67832.0,67831.0,0.001824]
[1722180999285,1.62199236,67832.0,67831.0,0.001824]
[1722180999490,1.82099236,67832.0,67831.0,0.001824]
[1722181000546,1.87199236,67832.0,67831.0,0.001824]
[1722181000660,2.02225193,67832.0,67831.0,0.001824]
[1722181000861,2.23893759,67832.0,67831.0,0.001824]
[1722181001163,1.87199236,67832.0,67831.0,0.001824]
[1722181001376,2.1118234,67832.0,67831.0,0.001824]
[1722181001774,1.84413774,67832.0,67831.0,0.001824]
[1722181001998,1.89513774,67832.0,67831.0,0.001824]
[1722181002202,1.73913345,67832.0,67831.0,0.001824]
[1722181002488,1.89521424,67832.0,67831.0,0.001824]
[1722181002711,1.71598807,67832.0,67831.0,0.001824]
[1722181002913,1.62231222,67832.0,67831.0,0.001824]
[1722181003119,1.48081222,67832.0,67831.0,0.001824]
[1722181004221,1.73081222,67832.0,67831.0,0.001824]
[1722181005227,1.88107179,67832.0,67831.0,0.001824]
[1722181005429,1.72474764,67832.0,67831.0,0.001824]
[1722181005630,1.88116002,67832.0,67831.0,0.001824]
[1722181005830,1.63116002,67832.0,67831.0,0.001824]
[1722181006101,1.94767055,67832.0,67831.0,0.001824]
[1722181006304,1.73090045,67832.0,67831.0,0.001824]
[1722181007474,1.94767055,67832.0,67831.0,0.001824]
[1722181008278,2.09267055,67832.0,67831.0,0.001824]
[1722181008484,1.87590045,67832.0,67831.0,0.001824]
[1722181008681,1.87602236,67832.0,67831.0,0.001824]
[1722181008924,1.79082236,67832.0,67831.0,0.001824]
[1722181009086,1.87602236,67832.0,67831.0,0.001824]
[1722181010418,2.04942716,67832.0,67831.0,0.001824]
[1722181010661,2.02628193,67832.0,67831.0,0.001824]
[1722181011524,1.87602236,67832.0,67831.0,0.001824]
[1722181012608,1.87655148,67832.0,67831.0,0.001824]
[1722181013448,1.12911667,67831.0,67830.0,0.000924]
[1722181013648,1.78545748,67831.0,67830.0,0.000924]
[1722181014033,1.80860355,67831.0,67830.0,0.000924]
[1722181014232,2.04448355,67831.0,67830.0,0.000924]
[1722181014562,2.04448355,67831.0,67818.0,0.08533]
[1722181014563,0.59334167,67819.0,67818.0,0.07670472]
[1722181014726,0.85400248,67819.0,67818.0,0.07670472]
[1722181014925,1.08992448,67819.0,67818.0,0.07670472]
[1722181015126,0.93286107,67819.0,67818.0,0.07670472]
[1722181015324,1.09054193,67819.0,67818.0,0.07670472]
[1722181016320,1.09154193,67819.0,67818.0,0.08170472]
[1722181018101,1.1156891,67819.0,67818.0,0.08170472]
[1722181018438,0.95800824,67819.0,67818.0,0.08170472]
[1722181018578,1.11574998,67819.0,67818.0,0.08170472]
[1722181021155,1.05800824,67819.0,67818.0,0.08170472]
[1722181021323,1.05800824,67819.0,67818.0,0.00550472]
[1722181021324,1.21541878,67819.0,67818.0,0.00550472]
[1722181021763,1.21542176,67819.0,67818.0,0.00550472]
[1722181023895,1.36055594,67819.0,67818.0,0.00550472]
[1722181024101,1.36008561,67819.0,67818.0,0.00550472]
[1722181026453,1.35908561,67819.0,67818.0,0.00550472]
[1722181026660,1.19180426,67819.0,67818.0,0.00550472]
[1722181027339,1.19150052,67819.0,67818.0,0.00550472]
[1722181028170,1.20045121,67819.0,67818.0,0.00550472]
[1722181030127,1.21587902,67819.0,67818.0,0.00550472]
[1722181030370,1.05923957,67819.0,67818.0,0.00550472]
[1722181030672,1.36575996,67819.0,67818.0,0.00550472]
[1722181031050,1.36601266,67819.0,67818.0,0.00550472]
[1722181032784,1.36501266,67819.0,67818.0,0.00550472]
[1722181032986,1.47482327,67819.0,67818.0,0.00550472]
[1722181033183,1.23890127,67819.0,67818.0,0.00550472]